Workbook

Sheet Stage Schedule
C2: TOTALS OF THE RALLY
D3: SS | E3: TRANSIT | F3: TOTAL | I3: %
C4: Leg 1 (Section 1) | D4: =D32 -> 37.08 | E4: =E32 -> 52.03 | F4: 89.11 | I4: =D4/F4 -> 0.4161149142
C5: Leg 2 (Sections 2, 3, 4) | D5: =D73 -> 81 | E5: =E73 -> 90.76 | F5: 145.07 | I5: =D5/F5 -> 0.5583511408
C6: Total -- 15 SS | D6: =SUM(D4:D5) -> 118.08 | E6: =SUM(E4:E5) -> 142.79 | F6: 234.18 | I6: =D6/F6 -> 0.5042275173
A8: START Leg 1 | L8: FRIDAY FEBRUARY 18, 2022
B10: TC | C10: LOCATION | D10: SS DIST | E10: TRANSIT DIST | F10: TOTAL DIST | G10: CONTROL | H10: LATENESS TIME | I10: TRANSIT TIME | J10: TARGET TIME | K10: FIRST CAR DUE
B12: 0 | C12: MTC OUT (Lewiston) | K12: 16:00:00
C13: distance to next refuel | D13: =-SUM(D14:D30) -> -37.08 | E13: =-SUM(E14:E30) -> -52.03 | F13: -89.11
B14: 1 | E14: 6.31 | F14: =E14 -> 6.31 | I14: 00:15:00 | J14: =H13+I14 -> 00:15:00 | K14: =K12+J14 -> 16:15:00 | L14: Section 1
B15: SS 1 | C15: FISHLAB-GREASY | D15: 8.16 | G15: 00:03:00 | H15: 00:15:00 | K15: =K14+G15 -> 16:18:00
B16: 2 | E16: 5.23 | F16: =D15+E16 -> 13.39 | I16: 00:15:00 | J16: =H15+I16 -> 00:30:00 | K16: =K15+J16 -> 16:48:00
B17: SS2 | C17: SHORT RANCH | D17: 3.29 | G17: 00:03:00 | H17: 00:07:00 | K17: =K16+G17 -> 16:51:00
B18: 3 | E18: 8.93 | F18: =D17+E18 -> 12.22 | I18: 00:18:00 | J18: =H17+I18 -> 00:25:00 | K18: =K17+J18 -> 17:16:00
B19: SS 3 | C19: SAGE-ORCHARD | D19: 7.09 | G19: 00:03:00 | H19: 00:12:00 | K19: =K18+G19 -> 17:19:00
B20: 3A | C20: TZ IN | E20: 5.53 | F20: =D19+E20 -> 12.62 | I20: 00:15:00 | J20: =H19+I20 -> 00:27:00 | K20: =K19+J20 -> 17:46:00
B21: TZ | C21: TIRE ZONE (Lewiston)
B22: 3B | C22: TZ OUT -- REGROUPING IN | E22: 0.06 | I22: 00:15:00 | J22: 00:15:00 | K22: =K20+J22 -> 18:01:00
B23: 3C | C23: REGROUPING OUT | E23: 0.07 | I23: 00:14:00 | J23: 00:14:00 | K23: =K22+J23 -> 18:15:00
B24: 4 | E24: 6.31 | F24: =SUM(E22:E24) -> 6.44 | I24: 00:15:00 | J24: =H23+I24 -> 00:15:00 | K24: =K23+J24 -> 18:30:00
B25: SS 4 | C25: FISHLAB-GREASY | D25: 8.16 | G25: 00:03:00 | H25: 00:15:00 | K25: =K24+G25 -> 18:33:00
B26: 5 | E26: 5.23 | F26: =D25+E26 -> 13.39 | I26: 00:15:00 | J26: =H25+I26 -> 00:30:00 | K26: =K25+J26 -> 19:03:00
B27: SS 5 | C27: SHORT RANCH | D27: 3.29 | G27: 00:03:00 | H27: 00:07:00 | K27: =K26+G27 -> 19:06:00
B28: 6 | E28: 8.93 | F28: =D27+E28 -> 12.22 | I28: 00:18:00 | J28: =H27+I28 -> 00:25:00 | K28: =K27+J28 -> 19:31:00
B29: SS 6 | C29: SAGE-ORCHARD | D29: 7.09 | G29: 00:03:00 | H29: 00:12:00 | K29: =K28+G29 -> 19:34:00
B30: 6A | C30: MTC IN (Lewiston) | E30: 5.43 | F30: =D29+E30 -> 12.52 | I30: 00:15:00 | J30: =H29+I30 -> 00:27:00 | K30: =K29+J30 -> 20:01:00
C32: Leg 1 Totals | D32: =SUM(D14:D30) -> 37.08 | E32: =SUM(E14:E30) -> 52.03 | F32: =SUM(F14:F30) -> 89.11
A35: START Leg 2 | L35: SATURDAY FEBRUARY 19, 2022
B37: TC | C37: LOCATION | D37: SS DIST | E37: TRANSIT DIST | F37: TOTAL DIST | G37: CONTROL | H37: LATENESS TIME | I37: TRANSIT TIME | J37: TARGET TIME | K37: FIRST CAR DUE
B39: 6B | C39: MTC OUT (Atlanta) | K39: 10:40:00
C40: distance to next refuel | D40: =-SUM(D41:D47) -> -23.08 | E40: =-SUM(E41:E47) -> -28.98 | F40: =-SUM(F41:F47) -> -45.31
B41: 7 | E41: 6.75 | I41: 00:15:00 | J41: =H40+I41 -> 00:15:00 | K41: =K39+J41 -> 10:55:00 | L41: Section 2
B42: SS 7 | C42: HUNTERS-AGREN | D42: 7.31 | G42: 00:03:00 | H42: 00:12:00 | K42: =K41+G42 -> 10:58:00
B43: 8 | E43: 8.14 | F43: =D42+E43 -> 15.45 | I43: 00:17:00 | J43: =H42+I43 -> 00:29:00 | K43: =K42+J43 -> 11:27:00
B44: SS 8 | C44: OLD STATE-HUFF | D44: 9.05 | G44: 00:03:00 | H44: 00:15:00 | K44: =K43+G44 -> 11:30:00
B45: 9 | E45: 6.97 | F45: =D44+E45 -> 16.02 | I45: 00:17:00 | J45: =H44+I45 -> 00:32:00 | K45: =K44+J45 -> 12:02:00
B46: SS 9 | C46: MILLS-MEAFORD | D46: 6.72 | G46: 00:03:00 | H46: 00:11:00 | K46: =K45+G46 -> 12:05:00
B47: 9A | C47: SERVICE IN | E47: 7.12 | F47: =D46+E47 -> 13.84 | I47: 00:17:00 | J47: =H46+I47 -> 00:28:00 | K47: =K46+J47 -> 12:33:00
C48: SERVICE A (Atlanta) | D48: =-SUM(D41:D47) -> -23.08 | E48: =-SUM(E41:E47) -> -28.98 | F48: -45.31 | L48: Section 3
B49: 9B | C49: SERVICE OUT -- REGROUPING IN | I49: 00:35:00 | J49: 00:35:00 | K49: =K47+J49 -> 13:08:00
B50: RZ | C50: REFUEL
B51: 1 | C51: distance to next refuel | D51: =-SUM(D52:D61) -> -38.05 | E51: =-SUM(E52:E61) -> -26.44 | F51: =-SUM(F52:F61) -> -59.06
B52: 9C | C52: REGROUPING OUT | I52: 00:14:00 | J52: 00:14:00 | K52: =K49+J52 -> 13:22:00
B53: 10 | E53: 5.43 | I53: 00:14:00 | J53: =H52+I53 -> 00:14:00 | K53: =K52+J53 -> 13:36:00
B54: SS 10 | C54: HUNTERS-AGREN | D54: 7.31 | G54: 00:03:00 | H54: 00:12:00 | K54: =K53+G54 -> 13:39:00
B55: 11 | E55: 8.14 | F55: =D54+E55 -> 15.45 | I55: 00:17:00 | J55: =H54+I55 -> 00:29:00 | K55: =K54+J55 -> 14:08:00
B56: SS 11 | C56: OLD STATE-HUFF | D56: 9.05 | G56: 00:03:00 | H56: 00:15:00 | K56: =K55+G56 -> 14:11:00
B57: 12 | E57: 0.98 | F57: =D56+E57 -> 10.03 | I57: 00:07:00 | J57: =H56+I57 -> 00:22:00 | K57: =K56+J57 -> 14:33:00
B58: SS 12 | C58: CAMP 30 | D58: 14.97 | G58: 00:03:00 | H58: 00:24:00 | K58: =K57+G58 -> 14:36:00
B59: 13 | E59: 4.77 | F59: =D58+E59 -> 19.74 | I59: 00:13:00 | J59: =H58+I59 -> 00:37:00 | K59: =K58+J59 -> 15:13:00
B60: SS 13 | C60: MILLS-MEAFORD | D60: 6.72 | G60: 00:03:00 | H60: 00:11:00 | K60: =K59+G60 -> 15:16:00
B61: 13A | C61: SERVICE IN | E61: 7.12 | F61: =D60+E61 -> 13.84 | I61: 00:17:00 | J61: =H60+I61 -> 00:28:00 | K61: =K60+J61 -> 15:44:00
C62: SERVICE B (Atlanta) | D62: =-SUM(D52:D61) -> -38.05 | E62: =-SUM(E52:E61) -> -26.44 | F62: -59.06 | L62: Section 4
B63: 13B | C63: SERVICE OUT -- REGROUPING IN | I63: 00:45:00 | J63: 00:45:00 | K63: =K61+J63 -> 16:29:00
B64: RZ | C64: REFUEL
B65: 2 | C65: distance to next refuel | D65: =-SUM(D66:D71) -> -19.87 | E65: =-SUM(E66:E71) -> -35.34 | F65: -40.7
B66: 13C | C66: REGROUPING OUT | I66: 00:19:00 | J66: 00:19:00 | K66: =K63+J66 -> 16:48:00
B67: 14 | E67: 14.51 | I67: 00:26:00 | J67: =H66+I67 -> 00:26:00 | K67: =K66+J67 -> 17:14:00
B68: SS14 | C68: CAMP 30 | D68: 14.97 | G68: 00:03:00 | H68: 00:24:00 | K68: =K67+G68 -> 17:17:00
B69: 15 | E69: 9.34 | F69: =D68+E69 -> 24.31 | I69: 00:20:00 | J69: =H68+I69 -> 00:44:00 | K69: =K68+J69 -> 18:01:00
B70: SS15 | C70: THUNDER RIVER | D70: 4.9 | G70: 00:03:00 | H70: 00:07:00 | K70: =K69+G70 -> 18:04:00
B71: 15A | C71: MTC IN (Hillman) | E71: 11.49 | F71: =D70+E71 -> 16.39 | I71: 00:23:00 | J71: =H70+I71 -> 00:30:00 | K71: =K70+J71 -> 18:34:00
C73: Leg 2 Totals | D73: =-D65-D51-D40 -> 81 | E73: =-E65-E51-E40 -> 90.76 | F73: 145.07

Sheet Operations Schedule
A1: 60 | B1: ='Stage Schedule'!B10 -> TC | C1: ='Stage Schedule'!C10 -> LOCATION | D1: ='Stage Schedule'!D10 -> SS DIST | E1: ='Stage Schedule'!E10 -> TRANSIT DIST | F1: ='Stage Schedule'!F10 -> TOTAL DIST | G1: ='Stage Schedule'!G10 -> CONTROL | H1: HOT TIME | I1: ='Stage Schedule'!H10 -> LATENESS TIME | J1: ='Stage Schedule'!I10 -> TRANSIT TIME | K1: ='Stage Schedule'!J10 -> TARGET TIME | L1: ='Stage Schedule'!K10 -> FIRST CAR DUE | M1: FIRST CAR FINISH | N1: LAST CAR START | O1: LAST CAR FINISH | P1: PICKUP | Q1: MI. TO STAGE | R1: TRAVEL + SETUP TIME | S1: LEAVE PICKUP | T1: SPECT MANNED | U1: STAGE MANNED | V1: STAGE TEAM | W1: 000 START | X1: 000 TEAM | Y1: 000 FINISH | Z1: 00 START | AA1: 00 TEAM | AB1: 00 FINISH | AC1: 0 START | AD1: 0 FINISH | AE1: SAFETY SWEEP START | AF1: SAFETY SWEEP FINISH | AG1: SLOW SWEEP START | AH1: SLOW SWEEP TEAM | AI1: SLOW SWEEP FINISH
R2: 30/12 mph | W2: 1.8 | Z2: 1.4 | AC2: 1.1 | AF2: 1.1 | AI2: 2
A3: CARS | B3: ='Stage Schedule'!B12 -> 0 | C3: ='Stage Schedule'!C12 -> MTC OUT (Lewiston) | L3: ='Stage Schedule'!K12 -> 16:00:00 | U3: =L3-30/60/24 -> 15:30:00
B4: ='Stage Schedule'!B14 -> 1 | E4: ='Stage Schedule'!E14 -> 6.31 | F4: ='Stage Schedule'!F14 -> 6.31 | J4: ='Stage Schedule'!I14 -> 00:15:00 | K4: ='Stage Schedule'!J14 -> 00:15:00 | L4: ='Stage Schedule'!K14 -> 16:15:00
B5: ='Stage Schedule'!B15 -> SS 1 | C5: ='Stage Schedule'!C15 -> FISHLAB-GREASY | D5: ='Stage Schedule'!D15 -> 8.16 | G5: ='Stage Schedule'!G15 -> 00:03:00 | H5: 10.00694444 | I5: ='Stage Schedule'!H15 -> 00:15:00 | L5: ='Stage Schedule'!K15 -> 16:18:00 | M5: =L5+H5 -> 10.68611111 | N5: =L5+$A$1/60/24 -> 17:18:00 | O5: =N5+I5 -> 17:33:00 | P5: Lewiston | Q5: 6 | R5: =Q5*2+D5*5 -> 52.8 | S5: =U5-R5/60/24 -> 13:47:42 | T5: =L5-2.5/24 -> 13:48:00 | U5: =W5-15/60/24 -> 14:40:30 | V5: A | W5: =Z5-I5*W$2-5/60/24 -> 14:55:30 | X5: A | Y5: =W5+I5*W$2 -> 15:22:30 | Z5: =AC5-I5*Z$2-5/60/24 -> 15:27:30 | AA5: A | AB5: =Z5+I5*Z$2 -> 15:48:30 | AC5: =L4-I5*AC$2-5/60/24 -> 15:53:30 | AD5: =AC5+I5*AC$2 -> 16:10:00 | AE5: =N5+1/60/24 -> 17:19:00 | AF5: =AE5+$I5*AF$2 -> 17:35:30 | AG5: =N5+2/60/24 -> 17:20:00 | AH5: A | AI5: =AG5+$I5*AI2 -> 17:50:00
B6: ='Stage Schedule'!B16 -> 2 | E6: ='Stage Schedule'!E16 -> 5.23 | F6: ='Stage Schedule'!F16 -> 13.39 | J6: ='Stage Schedule'!I16 -> 00:15:00 | K6: ='Stage Schedule'!J16 -> 00:30:00 | L6: ='Stage Schedule'!K16 -> 16:48:00
B7: ='Stage Schedule'!B17 -> SS2 | C7: ='Stage Schedule'!C17 -> SHORT RANCH | D7: ='Stage Schedule'!D17 -> 3.29 | G7: ='Stage Schedule'!G17 -> 00:03:00 | H7: 10.00347222 | I7: ='Stage Schedule'!H17 -> 00:07:00 | L7: ='Stage Schedule'!K17 -> 16:51:00 | M7: =L7+H7 -> 10.70555556 | N7: =L7+$A$1/60/24 -> 17:51:00 | O7: =N7+I7 -> 17:58:00 | P7: Lewiston | Q7: 16 | R7: =Q7*2+D7*5 -> 48.45 | S7: =U7-R7/60/24 -> 14:59:27 | T7: n/a | U7: =W7-15/60/24 -> 15:47:54 | V7: B | W7: =Z7-I7*W$2-5/60/24 -> 16:02:54 | X7: B | Y7: =W7+I7*W$2 -> 16:15:30 | Z7: =AC7-I7*Z$2-5/60/24 -> 16:20:30 | AA7: B | AB7: =Z7+I7*Z$2 -> 16:30:18 | AC7: =L6-I7*AC$2-5/60/24 -> 16:35:18 | AD7: =AC7+I7*AC$2 -> 16:43:00 | AE7: =N7+1/60/24 -> 17:52:00 | AF7: =AE7+$I7*AF$2 -> 17:59:42 | AG7: =N7+2/60/24 -> 17:53:00 | AH7: B | AI7: =AG7+$I7*AI4 -> 17:53:00
B8: ='Stage Schedule'!B18 -> 3 | E8: ='Stage Schedule'!E18 -> 8.93 | F8: ='Stage Schedule'!F18 -> 12.22 | J8: ='Stage Schedule'!I18 -> 00:18:00 | K8: ='Stage Schedule'!J18 -> 00:25:00 | L8: ='Stage Schedule'!K18 -> 17:16:00
B9: ='Stage Schedule'!B19 -> SS 3 | C9: ='Stage Schedule'!C19 -> SAGE-ORCHARD | D9: ='Stage Schedule'!D19 -> 7.09 | G9: ='Stage Schedule'!G19 -> 00:03:00 | H9: 10.00555556 | I9: ='Stage Schedule'!H19 -> 00:12:00 | L9: ='Stage Schedule'!K19 -> 17:19:00 | M9: =L9+H9 -> 10.72708333 | N9: =L9+$A$1/60/24 -> 18:19:00 | O9: =N9+I9 -> 18:31:00 | P9: Lewiston | Q9: 12 | R9: =Q9*2+D9*5 -> 59.45 | S9: =U9-R9/60/24 -> 14:54:57 | T9: =L9-2.5/24 -> 14:49:00 | U9: =W9-15/60/24 -> 15:54:24 | V9: C | W9: =Z9-I9*W$2-5/60/24 -> 16:09:24 | X9: A | Y9: =W9+I9*W$2 -> 16:31:00 | Z9: =AC9-I9*Z$2-5/60/24 -> 16:36:00 | AA9: A | AB9: =Z9+I9*Z$2 -> 16:52:48 | AC9: =L8-I9*AC$2-5/60/24 -> 16:57:48 | AD9: =AC9+I9*AC$2 -> 17:11:00 | AE9: =N9+1/60/24 -> 18:20:00 | AF9: =AE9+$I9*AF$2 -> 18:33:12 | AG9: =N9+2/60/24 -> 18:21:00 | AH9: A | AI9: =AG9+$I9*AI6 -> 18:21:00
B10: ='Stage Schedule'!B20 -> 3A | C10: ='Stage Schedule'!C20 -> TZ IN | E10: ='Stage Schedule'!E20 -> 5.53 | F10: ='Stage Schedule'!F20 -> 12.62 | J10: ='Stage Schedule'!I20 -> 00:15:00 | K10: ='Stage Schedule'!J20 -> 00:27:00 | L10: ='Stage Schedule'!K20 -> 17:46:00 | M10: =L10+H10 -> 17:46:00 | N10: =L10+$A$1/60/24 -> 18:46:00 | O10: =N10+I10 -> 18:46:00 | U10: =L10-30/60/24 -> 17:16:00
B11: ='Stage Schedule'!B22 -> 3B | C11: ='Stage Schedule'!C22 -> TZ OUT -- REGROUPING IN | E11: ='Stage Schedule'!E22 -> 0.06 | K11: ='Stage Schedule'!J22 -> 00:15:00 | L11: ='Stage Schedule'!K22 -> 18:01:00 | M11: =L11+H11 -> 18:01:00 | N11: =L11+$A$1/60/24 -> 19:01:00 | O11: =N11+I11 -> 19:01:00 | U11: 17:31:00
B12: ='Stage Schedule'!B23 -> 3C | C12: ='Stage Schedule'!C23 -> REGROUPING OUT | E12: ='Stage Schedule'!E23 -> 0.07 | K12: ='Stage Schedule'!J23 -> 00:14:00 | L12: ='Stage Schedule'!K23 -> 18:15:00 | M12: 18:15:00 | N12: 19:15:00 | O12: 19:15:00 | U12: 17:45:00
B13: ='Stage Schedule'!B24 -> 4 | E13: ='Stage Schedule'!E24 -> 6.31 | F13: ='Stage Schedule'!F24 -> 6.44 | J13: ='Stage Schedule'!I24 -> 00:15:00 | K13: ='Stage Schedule'!J24 -> 00:15:00 | L13: ='Stage Schedule'!K24 -> 18:30:00
B14: ='Stage Schedule'!B25 -> SS 4 | C14: ='Stage Schedule'!C25 -> FISHLAB-GREASY | D14: ='Stage Schedule'!D25 -> 8.16 | G14: ='Stage Schedule'!G25 -> 00:03:00 | H14: 10.00694444 | I14: ='Stage Schedule'!H25 -> 00:15:00 | L14: ='Stage Schedule'!K25 -> 18:33:00 | M14: =L14+H14 -> 10.77986111 | N14: =L14+$A$1/60/24 -> 19:33:00 | O14: =N14+I14 -> 19:48:00 | T14: SS 1 | U14: =W14-15/60/24 -> 17:05:30 | V14: A | W14: =Z14-I14*W$2-0/60/24 -> 17:20:30 | X14: B | Y14: =W14+I14*W$2 -> 17:47:30 | Z14: =AC14-I14*Z$2-0/60/24 -> 17:47:30 | AA14: B | AB14: =Z14+I14*Z$2 -> 18:08:30 | AC14: =L13-I14*AC$2-5/60/24 -> 18:08:30 | AD14: =AC14+I14*AC$2 -> 18:25:00 | AE14: =N14+1/60/24 -> 19:34:00 | AF14: =AE14+$I14*AF$2 -> 19:50:30 | AG14: =N14+2/60/24 -> 19:35:00 | AH14: B | AI14: =AG14+$I14*AI11 -> 19:35:00
B15: ='Stage Schedule'!B26 -> 5 | E15: ='Stage Schedule'!E26 -> 5.23 | F15: ='Stage Schedule'!F26 -> 13.39 | J15: ='Stage Schedule'!I26 -> 00:15:00 | K15: ='Stage Schedule'!J26 -> 00:30:00 | L15: ='Stage Schedule'!K26 -> 19:03:00
B16: ='Stage Schedule'!B27 -> SS 5 | C16: ='Stage Schedule'!C27 -> SHORT RANCH | D16: ='Stage Schedule'!D27 -> 3.29 | G16: ='Stage Schedule'!G27 -> 00:03:00 | H16: 10.00347222 | I16: ='Stage Schedule'!H27 -> 00:07:00 | L16: ='Stage Schedule'!K27 -> 19:06:00 | M16: =L16+H16 -> 10.79930556 | N16: =L16+$A$1/60/24 -> 20:06:00 | O16: =N16+I16 -> 20:13:00 | T16: n/a | U16: =W16-15/60/24 -> 18:12:54 | V16: B | W16: =Z16-I16*W$2-0/60/24 -> 18:27:54 | X16: A | Y16: =W16+I16*W$2 -> 18:40:30 | Z16: =AC16-I16*Z$2-5/60/24 -> 18:40:30 | AA16: A | AB16: =Z16+I16*Z$2 -> 18:50:18 | AC16: =L15-I16*AC$2-0/60/24 -> 18:55:18 | AD16: =AC16+I16*AC$2 -> 19:03:00 | AE16: =N16+1/60/24 -> 20:07:00 | AF16: =AE16+$I16*AF$2 -> 20:14:42 | AG16: =N16+2/60/24 -> 20:08:00 | AH16: A | AI16: =AG16+$I16*AI13 -> 20:08:00
B17: ='Stage Schedule'!B28 -> 6 | E17: ='Stage Schedule'!E28 -> 8.93 | F17: ='Stage Schedule'!F28 -> 12.22 | J17: ='Stage Schedule'!I28 -> 00:18:00 | K17: ='Stage Schedule'!J28 -> 00:25:00 | L17: ='Stage Schedule'!K28 -> 19:31:00
B18: ='Stage Schedule'!B29 -> SS 6 | C18: ='Stage Schedule'!C29 -> SAGE-ORCHARD | D18: ='Stage Schedule'!D29 -> 7.09 | G18: ='Stage Schedule'!G29 -> 00:03:00 | H18: 10.00555556 | I18: ='Stage Schedule'!H29 -> 00:12:00 | L18: ='Stage Schedule'!K29 -> 19:34:00 | M18: =L18+H18 -> 10.82083333 | N18: =L18+$A$1/60/24 -> 20:34:00 | O18: =N18+I18 -> 20:46:00 | T18: SS 3 | U18: =W18-15/60/24 -> 18:19:24 | V18: C | W18: =Z18-I18*W$2-0/60/24 -> 18:34:24 | X18: B | Y18: =W18+I18*W$2 -> 18:56:00 | Z18: =AC18-I18*Z$2-0/60/24 -> 18:56:00 | AA18: B | AB18: =Z18+I18*Z$2 -> 19:12:48 | AC18: =L17-I18*AC$2-5/60/24 -> 19:12:48 | AD18: =AC18+I18*AC$2 -> 19:26:00 | AE18: =N18+1/60/24 -> 20:35:00 | AF18: =AE18+$I18*AF$2 -> 20:48:12 | AG18: =N18+2/60/24 -> 20:36:00 | AH18: B | AI18: =AG18+$I18*AI15 -> 20:36:00
B19: ='Stage Schedule'!B30 -> 6A | C19: ='Stage Schedule'!C30 -> MTC IN (Lewiston) | E19: ='Stage Schedule'!E30 -> 5.43 | F19: ='Stage Schedule'!F30 -> 12.52 | J19: ='Stage Schedule'!I30 -> 00:15:00 | K19: ='Stage Schedule'!J30 -> 00:27:00 | L19: ='Stage Schedule'!K30 -> 20:01:00 | U19: =L19-30/60/24 -> 19:31:00
B20: ='Stage Schedule'!B39 -> 6B | C20: ='Stage Schedule'!C39 -> MTC OUT (Atlanta) | L20: ='Stage Schedule'!K39 -> 10:40:00 | U20: =L20-30/60/24 -> 10:10:00
B21: ='Stage Schedule'!B41 -> 7 | E21: ='Stage Schedule'!E41 -> 6.75 | J21: ='Stage Schedule'!I41 -> 00:15:00 | K21: ='Stage Schedule'!J41 -> 00:15:00 | L21: ='Stage Schedule'!K41 -> 10:55:00
B22: ='Stage Schedule'!B42 -> SS 7 | C22: ='Stage Schedule'!C42 -> HUNTERS-AGREN | D22: ='Stage Schedule'!D42 -> 7.31 | G22: ='Stage Schedule'!G42 -> 00:03:00 | H22: 10.00555556 | I22: ='Stage Schedule'!H42 -> 00:12:00 | L22: ='Stage Schedule'!K42 -> 10:58:00 | M22: =L22+H22 -> 10.4625 | N22: =L22+$A$1/60/24 -> 11:58:00 | O22: =N22+I22 -> 12:10:00 | P22: Lewiston | Q22: 8 | R22: =Q22*2+D22*5 -> 52.55 | S22: =U22-R22/60/24 -> 08:40:51 | T22: n/a | U22: =W22-15/60/24 -> 09:33:24 | V22: 1 | W22: =Z22-I22*W$2-5/60/24 -> 09:48:24 | X22: A | Y22: =W22+I22*W$2 -> 10:10:00 | Z22: =AC22-I22*Z$2-5/60/24 -> 10:15:00 | AA22: A | AB22: =Z22+I22*Z$2 -> 10:31:48 | AC22: =L21-I22*AC$2-5/60/24 -> 10:36:48 | AD22: =AC22+I22*AC$2 -> 10:50:00 | AE22: =N22+1/60/24 -> 11:59:00 | AF22: =AE22+$I22*AF$2 -> 12:12:12 | AG22: =N22+2/60/24 -> 12:00:00 | AH22: A | AI22: =AG22+$I22*AI19 -> 12:00:00
B23: ='Stage Schedule'!B43 -> 8 | E23: ='Stage Schedule'!E43 -> 8.14 | F23: ='Stage Schedule'!F43 -> 15.45 | J23: ='Stage Schedule'!I43 -> 00:17:00 | K23: ='Stage Schedule'!J43 -> 00:29:00 | L23: ='Stage Schedule'!K43 -> 11:27:00
B24: ='Stage Schedule'!B44 -> SS 8 | C24: ='Stage Schedule'!C44 -> OLD STATE-HUFF | D24: ='Stage Schedule'!D44 -> 9.05 | G24: ='Stage Schedule'!G44 -> 00:03:00 | H24: 10.00694444 | I24: ='Stage Schedule'!H44 -> 00:15:00 | L24: ='Stage Schedule'!K44 -> 11:30:00 | M24: =L24+H24 -> 10.48611111 | N24: =L24+$A$1/60/24 -> 12:30:00 | O24: =N24+I24 -> 12:45:00 | P24: Big Rock | Q24: 2 | R24: =Q24*2+D24*5 -> 49.25 | S24: =U24-R24/60/24 -> 09:03:15 | T24: =L24-2.5/24 -> 09:00:00 | U24: =W24-15/60/24 -> 09:52:30 | V24: 2 | W24: =Z24-I24*W$2-5/60/24 -> 10:07:30 | X24: B | Y24: =W24+I24*W$2 -> 10:34:30 | Z24: =AC24-I24*Z$2-5/60/24 -> 10:39:30 | AA24: B | AB24: =Z24+I24*Z$2 -> 11:00:30 | AC24: =L23-I24*AC$2-5/60/24 -> 11:05:30 | AD24: =AC24+I24*AC$2 -> 11:22:00 | AE24: =N24+1/60/24 -> 12:31:00 | AF24: =AE24+$I24*AF$2 -> 12:47:30 | AG24: =N24+2/60/24 -> 12:32:00 | AH24: B | AI24: =AG24+$I24*AI21 -> 12:32:00
B25: ='Stage Schedule'!B45 -> 9 | E25: ='Stage Schedule'!E45 -> 6.97 | F25: ='Stage Schedule'!F45 -> 16.02 | J25: ='Stage Schedule'!I45 -> 00:17:00 | K25: ='Stage Schedule'!J45 -> 00:32:00 | L25: ='Stage Schedule'!K45 -> 12:02:00
B26: ='Stage Schedule'!B46 -> SS 9 | C26: ='Stage Schedule'!C46 -> MILLS-MEAFORD | D26: ='Stage Schedule'!D46 -> 6.72 | G26: ='Stage Schedule'!G46 -> 00:03:00 | H26: 10.00555556 | I26: ='Stage Schedule'!H46 -> 00:11:00 | L26: ='Stage Schedule'!K46 -> 12:05:00 | M26: =L26+H26 -> 10.50902778 | N26: =L26+$A$1/60/24 -> 13:05:00 | O26: =N26+I26 -> 13:16:00 | P26: Atlanta | Q26: 12 | R26: =Q26*2+D26*5 -> 57.6 | S26: =U26-R26/60/24 -> 09:47:06 | T26: =L26-2.5/24 -> 09:35:00 | U26: =W26-15/60/24 -> 10:44:42 | V26: 3 | W26: =Z26-I26*W$2-5/60/24 -> 10:59:42 | X26: A | Y26: =W26+I26*W$2 -> 11:19:30 | Z26: =AC26-I26*Z$2-5/60/24 -> 11:24:30 | AA26: A | AB26: =Z26+I26*Z$2 -> 11:39:54 | AC26: =L25-I26*AC$2-5/60/24 -> 11:44:54 | AD26: =AC26+I26*AC$2 -> 11:57:00 | AE26: =N26+1/60/24 -> 13:06:00 | AF26: =AE26+$I26*AF$2 -> 13:18:06 | AG26: =N26+2/60/24 -> 13:07:00 | AH26: A | AI26: =AG26+$I26*AI23 -> 13:07:00
B27: ='Stage Schedule'!B47 -> 9A | C27: ='Stage Schedule'!C47 -> SERVICE IN | E27: ='Stage Schedule'!E47 -> 7.12 | F27: ='Stage Schedule'!F47 -> 13.84 | J27: ='Stage Schedule'!I47 -> 00:17:00 | K27: ='Stage Schedule'!J47 -> 00:28:00 | L27: ='Stage Schedule'!K47 -> 12:33:00 | U27: =L27-30/60/24 -> 12:03:00
B28: ='Stage Schedule'!B49 -> 9B | C28: ='Stage Schedule'!C49 -> SERVICE OUT -- REGROUPING IN | K28: ='Stage Schedule'!J49 -> 00:35:00 | L28: ='Stage Schedule'!K49 -> 13:08:00 | U28: =L28-45/60/24 -> 12:23:00
B29: ='Stage Schedule'!B52 -> 9C | C29: ='Stage Schedule'!C52 -> REGROUPING OUT | K29: ='Stage Schedule'!J52 -> 00:14:00 | L29: ='Stage Schedule'!K52 -> 13:22:00 | U29: =L29-45/60/24 -> 12:37:00
B30: ='Stage Schedule'!B53 -> 10 | E30: ='Stage Schedule'!E53 -> 5.43 | J30: ='Stage Schedule'!I53 -> 00:14:00 | K30: ='Stage Schedule'!J53 -> 00:14:00 | L30: ='Stage Schedule'!K53 -> 13:36:00
B31: ='Stage Schedule'!B54 -> SS 10 | C31: ='Stage Schedule'!C54 -> HUNTERS-AGREN | D31: ='Stage Schedule'!D54 -> 7.31 | G31: ='Stage Schedule'!G54 -> 00:03:00 | H31: 10.00555556 | I31: ='Stage Schedule'!H54 -> 00:12:00 | L31: ='Stage Schedule'!K54 -> 13:39:00 | M31: =L31+H31 -> 10.57430556 | N31: =L31+$A$1/60/24 -> 14:39:00 | O31: =N31+I31 -> 14:51:00 | T31: n/a | U31: =W31-15/60/24 -> 12:19:24 | V31: 1 | W31: =Z31-I31*W$2-0/60/24 -> 12:34:24 | X31: B | Y31: =W31+I31*W$2 -> 12:56:00 | Z31: =AC31-I31*Z$2-5/60/24 -> 12:56:00 | AA31: B | AB31: =Z31+I31*Z$2 -> 13:12:48 | AC31: =L30-I31*AC$2-5/60/24 -> 13:17:48 | AD31: =AC31+I31*AC$2 -> 13:31:00 | AE31: =N31+1/60/24 -> 14:40:00 | AF31: =AE31+$I31*AF$2 -> 14:53:12 | AG31: =N31+2/60/24 -> 14:41:00 | AH31: B | AI31: =AG31+$I31*AI28 -> 14:41:00
B32: ='Stage Schedule'!B55 -> 11 | E32: ='Stage Schedule'!E55 -> 8.14 | F32: ='Stage Schedule'!F55 -> 15.45 | J32: ='Stage Schedule'!I55 -> 00:17:00 | K32: ='Stage Schedule'!J55 -> 00:29:00 | L32: ='Stage Schedule'!K55 -> 14:08:00
B33: ='Stage Schedule'!B56 -> SS 11 | C33: ='Stage Schedule'!C56 -> OLD STATE-HUFF | D33: ='Stage Schedule'!D56 -> 9.05 | G33: ='Stage Schedule'!G56 -> 00:03:00 | H33: 10.00694444 | I33: ='Stage Schedule'!H56 -> 00:15:00 | L33: ='Stage Schedule'!K56 -> 14:11:00 | M33: =L33+H33 -> 10.59791667 | N33: =L33+$A$1/60/24 -> 15:11:00 | O33: =N33+I33 -> 15:26:00 | T33: SS 8 | U33: =W33-15/60/24 -> 12:38:30 | V33: 2 | W33: =Z33-I33*W$2-0/60/24 -> 12:53:30 | X33: A | Y33: =W33+I33*W$2 -> 13:20:30 | Z33: =AC33-I33*Z$2-5/60/24 -> 13:20:30 | AA33: A | AB33: =Z33+I33*Z$2 -> 13:41:30 | AC33: =L32-I33*AC$2-5/60/24 -> 13:46:30 | AD33: =AC33+I33*AC$2 -> 14:03:00 | AE33: =N33+1/60/24 -> 15:12:00 | AF33: =AE33+$I33*AF$2 -> 15:28:30 | AG33: =N33+2/60/24 -> 15:13:00 | AH33: A | AI33: =AG33+$I33*AI30 -> 15:13:00
B34: ='Stage Schedule'!B57 -> 12 | E34: ='Stage Schedule'!E57 -> 0.98 | F34: ='Stage Schedule'!F57 -> 10.03 | J34: ='Stage Schedule'!I57 -> 00:07:00 | K34: ='Stage Schedule'!J57 -> 00:22:00 | L34: ='Stage Schedule'!K57 -> 14:33:00
B35: ='Stage Schedule'!B58 -> SS 12 | C35: ='Stage Schedule'!C58 -> CAMP 30 | D35: ='Stage Schedule'!D58 -> 14.97 | G35: ='Stage Schedule'!G58 -> 00:03:00 | H35: 10.01111111 | I35: ='Stage Schedule'!H58 -> 00:24:00 | L35: ='Stage Schedule'!K58 -> 14:36:00 | M35: =L35+H35 -> 10.61944444 | N35: =L35+$A$1/60/24 -> 15:36:00 | O35: =N35+I35 -> 16:00:00 | P35: Atlanta | Q35: 13 | R35: =Q35*2+D35*5 -> 100.85 | S35: =U35-R35/60/24 -> 10:38:57 | T35: n/a | U35: =W35-15/60/24 -> 12:19:48 | V35: 4 | W35: =Z35-I35*W$2-5/60/24 -> 12:34:48 | X35: B | Y35: =W35+I35*W$2 -> 13:18:00 | Z35: =AC35-I35*Z$2-5/60/24 -> 13:23:00 | AA35: B | AB35: =Z35+I35*Z$2 -> 13:56:36 | AC35: =L34-I35*AC$2-5/60/24 -> 14:01:36 | AD35: =AC35+I35*AC$2 -> 14:28:00 | AE35: =N35+1/60/24 -> 15:37:00 | AF35: =AE35+$I35*AF$2 -> 16:03:24 | AG35: =N35+2/60/24 -> 15:38:00 | AH35: B | AI35: =AG35+$I35*AI32 -> 15:38:00
B36: ='Stage Schedule'!B59 -> 13 | E36: ='Stage Schedule'!E59 -> 4.77 | F36: ='Stage Schedule'!F59 -> 19.74 | J36: ='Stage Schedule'!I59 -> 00:13:00 | K36: ='Stage Schedule'!J59 -> 00:37:00 | L36: ='Stage Schedule'!K59 -> 15:13:00
B37: ='Stage Schedule'!B60 -> SS 13 | C37: ='Stage Schedule'!C60 -> MILLS-MEAFORD | D37: ='Stage Schedule'!D60 -> 6.72 | G37: ='Stage Schedule'!G60 -> 00:03:00 | H37: 10.00555556 | I37: ='Stage Schedule'!H60 -> 00:11:00 | L37: ='Stage Schedule'!K60 -> 15:16:00 | M37: =L37+H37 -> 10.64166667 | N37: =L37+$A$1/60/24 -> 16:16:00 | O37: =N37+I37 -> 16:27:00 | T37: SS 9 | U37: =W37-15/60/24 -> 14:00:42 | V37: 3 | W37: =Z37-I37*W$2-0/60/24 -> 14:15:42 | X37: A | Y37: =W37+I37*W$2 -> 14:35:30 | Z37: =AC37-I37*Z$2-5/60/24 -> 14:35:30 | AA37: A | AB37: =Z37+I37*Z$2 -> 14:50:54 | AC37: =L36-I37*AC$2-5/60/24 -> 14:55:54 | AD37: =AC37+I37*AC$2 -> 15:08:00 | AE37: =N37+1/60/24 -> 16:17:00 | AF37: =AE37+$I37*AF$2 -> 16:29:06 | AG37: =N37+2/60/24 -> 16:18:00 | AH37: A | AI37: =AG37+$I37*AI34 -> 16:18:00
B38: ='Stage Schedule'!B61 -> 13A | C38: ='Stage Schedule'!C61 -> SERVICE IN | E38: ='Stage Schedule'!E61 -> 7.12 | F38: ='Stage Schedule'!F61 -> 13.84 | J38: ='Stage Schedule'!I61 -> 00:17:00 | K38: ='Stage Schedule'!J61 -> 00:28:00 | L38: ='Stage Schedule'!K61 -> 15:44:00 | U38: =L38-30/60/24 -> 15:14:00
B39: ='Stage Schedule'!B63 -> 13B | C39: ='Stage Schedule'!C63 -> SERVICE OUT -- REGROUPING IN | K39: ='Stage Schedule'!J63 -> 00:45:00 | L39: ='Stage Schedule'!K63 -> 16:29:00 | U39: =L39-45/60/24 -> 15:44:00
B40: ='Stage Schedule'!B66 -> 13C | C40: ='Stage Schedule'!C66 -> REGROUPING OUT | K40: ='Stage Schedule'!J66 -> 00:19:00 | L40: ='Stage Schedule'!K66 -> 16:48:00 | U40: =L40-45/60/24 -> 16:03:00
B41: ='Stage Schedule'!B67 -> 14 | E41: ='Stage Schedule'!E67 -> 14.51 | J41: ='Stage Schedule'!I67 -> 00:26:00 | K41: ='Stage Schedule'!J67 -> 00:26:00 | L41: ='Stage Schedule'!K67 -> 17:14:00
B42: ='Stage Schedule'!B68 -> SS14 | C42: ='Stage Schedule'!C68 -> CAMP 30 | D42: ='Stage Schedule'!D68 -> 14.97 | G42: ='Stage Schedule'!G68 -> 00:03:00 | H42: 10.01111111 | I42: ='Stage Schedule'!H68 -> 00:24:00 | L42: ='Stage Schedule'!K68 -> 17:17:00 | M42: =L42+H42 -> 10.73125 | N42: =L42+$A$1/60/24 -> 18:17:00 | O42: =N42+I42 -> 18:41:00 | T42: n/a | U42: =W42-15/60/24 -> 15:05:48 | V42: 4 | W42: =Z42-I42*W$2-0/60/24 -> 15:20:48 | X42: B | Y42: =W42+I42*W$2 -> 16:04:00 | Z42: =AC42-I42*Z$2-5/60/24 -> 16:04:00 | AA42: B | AB42: =Z42+I42*Z$2 -> 16:37:36 | AC42: =L41-I42*AC$2-5/60/24 -> 16:42:36 | AD42: =AC42+I42*AC$2 -> 17:09:00 | AE42: =N42+1/60/24 -> 18:18:00 | AF42: =AE42+$I42*AF$2 -> 18:44:24 | AG42: =N42+2/60/24 -> 18:19:00 | AH42: B | AI42: =AG42+$I42*AI39 -> 18:19:00
B43: ='Stage Schedule'!B69 -> 15 | E43: ='Stage Schedule'!E69 -> 9.34 | F43: ='Stage Schedule'!F69 -> 24.31 | J43: ='Stage Schedule'!I69 -> 00:20:00 | K43: ='Stage Schedule'!J69 -> 00:44:00 | L43: ='Stage Schedule'!K69 -> 18:01:00
B44: ='Stage Schedule'!B70 -> SS15 | C44: ='Stage Schedule'!C70 -> THUNDER RIVER | D44: ='Stage Schedule'!D70 -> 4.9 | G44: ='Stage Schedule'!G70 -> 00:03:00 | H44: 10.00555556 | I44: ='Stage Schedule'!H70 -> 00:07:00 | L44: ='Stage Schedule'!K70 -> 18:04:00 | M44: =L44+H44 -> 10.75833333 | N44: =L44+$A$1/60/24 -> 19:04:00 | O44: =N44+I44 -> 19:11:00 | P44: Atlanta | Q44: 14 | R44: =Q44*2+D44*5 -> 52.5 | S44: =U44-R44/60/24 -> 16:08:24 | T44: =L44-2.5/24 -> 15:34:00 | U44: =W44-15/60/24 -> 17:00:54 | V44: 1 | W44: =Z44-I44*W$2-5/60/24 -> 17:15:54 | X44: A | Y44: =W44+I44*W$2 -> 17:28:30 | Z44: =AC44-I44*Z$2-5/60/24 -> 17:33:30 | AA44: A | AB44: =Z44+I44*Z$2 -> 17:43:18 | AC44: =L43-I44*AC$2-5/60/24 -> 17:48:18 | AD44: =AC44+I44*AC$2 -> 17:56:00 | AE44: =N44+1/60/24 -> 19:05:00 | AF44: =AE44+$I44*AF$2 -> 19:12:42 | AG44: =N44+2/60/24 -> 19:06:00 | AH44: A | AI44: =AG44+$I44*AI41 -> 19:06:00
B45: ='Stage Schedule'!B71 -> 15A | C45: ='Stage Schedule'!C71 -> MTC IN (Hillman) | E45: ='Stage Schedule'!E71 -> 11.49 | F45: ='Stage Schedule'!F71 -> 16.39 | J45: ='Stage Schedule'!I71 -> 00:23:00 | K45: ='Stage Schedule'!J71 -> 00:30:00 | L45: ='Stage Schedule'!K71 -> 18:34:00 | U45: =L45-45/60/24 -> 17:49:00
